fUST/lending_fUST_20250615
["ID","MTS","AMOUNT","RATE_DAILY","PERIOD"]
[365937090,1749991772741,-500.0,0.00019178,2]
[365937091,1749991772763,-355.79454271,0.00019178,2]
[365937092,1749991772785,-500.0,0.00019178,2]
[365937093,1749991772806,-500.0,0.00019178,2]
[365937094,1749991772827,-500.0,0.00019178,2]
[365937095,1749991772848,-500.0,0.00019178,2]
[365937096,1749991772870,-460.0,0.00019178,2]
[365937097,1749991772891,-460.0,0.00019178,2]
[365937098,1749991772911,-400.0,0.00019178,2]
[365937099,1749991772934,-460.0,0.00019178,2]
[365937100,1749991772954,-440.0,0.00019178,2]
[365937101,1749991772975,-463.20479035,0.00019178,2]
[365937102,1749991772996,-460.0,0.00019178,2]
[365937103,1749991773019,-460.0,0.00019178,2]
[365937104,1749991773042,-460.0,0.00019178,2]
[365937105,1749991773064,-460.0,0.00019178,2]
[365937106,1749991773087,-460.0,0.00019178,2]
[365937107,1749991773109,-460.0,0.00019178,2]
[365937108,1749991773130,-430.0,0.00019178,2]
[365937109,1749991773152,-460.0,0.00019178,2]
[365937110,1749991773174,-460.0,0.00019178,2]
[365937111,1749991773197,-500.0,0.00019178,2]
[365937112,1749991773221,-500.0,0.00019178,2]
[365937113,1749991773244,-500.0,0.00019178,2]
[365937114,1749991773268,-460.0,0.00019178,2]
[365937115,1749991773291,-440.0,0.00019178,2]
[365937116,1749991773314,-460.0,0.00019178,2]
[365937117,1749991773337,-440.0,0.00019178,2]
[365937118,1749991773360,-460.0,0.00019178,2]
[365937119,1749991773386,-460.0,0.00019178,2]
[365937120,1749991773409,-460.0,0.00019178,2]
[365937121,1749991773431,-460.0,0.00019178,2]
[365937122,1749991773453,-460.0,0.00019178,2]
[365937123,1749991773476,-197.88211373,0.00019178,2]
[365937124,1749991773501,-460.0,0.00019178,2]
[365937125,1749991773525,-240.0,0.00019178,2]
[365937126,1749991773549,-460.0,0.00019178,2]
[365937127,1749991773572,-460.0,0.00019178,2]
[365937128,1749991773595,-460.0,0.00019178,2]
[365937129,1749991773618,-460.0,0.00019178,2]
[365937130,1749991773642,-460.0,0.00019178,2]
[365937131,1749991773663,-460.0,0.00019178,2]
[365937132,1749991773685,-460.0,0.00019178,2]
[365937133,1749991773707,-440.0,0.00019178,2]
[365937134,1749991773729,-460.0,0.00019178,2]
[365937135,1749991773752,-460.0,0.00019178,2]
[365937136,1749991773774,-430.0,0.00019178,2]
[365937137,1749991773796,-184.532785,0.00019178,2]
[365937138,1749991773818,-4241.52107429,0.00019178,2]
[365937139,1749991773840,-500.0,0.00019178,2]
[365937140,1749991773862,-200.86455097,0.00019178,3]
[365937141,1749991773883,-274.20544859,0.00019207,2]
[365937142,1749991774118,460.0,0.00019178,2]
[365937143,1749991774178,495.12192138,0.00019178,2]
[365937144,1749991774204,460.0,0.00019178,2]
[365937145,1749991774279,460.0,0.00019178,2]
[365937146,1749991774309,460.0,0.00019178,2]
[365937147,1749991774334,460.0,0.00019178,2]
[365937148,1749991774360,5000.0,0.00018986,2]
[365937149,1749991774499,440.0,0.00019178,2]
[365937150,1749991775118,400.0,0.00019178,2]
[365937151,1749991777502,460.0,0.00019178,2]
[365937152,1749991778240,460.0,0.00019178,2]
[365937153,1749991781866,500.0,0.00019178,2]
[365937154,1749991783108,460.0,0.00019178,2]
[365937155,1749991783502,460.0,0.00019178,2]
[365937156,1749991784280,430.0,0.00019178,2]
[365937157,1749991785351,460.0,0.00019178,2]
[365937158,1749991785938,460.0,0.00019178,2]
[365937159,1749991787291,511.69287725,0.00019178,2]
[365937160,1749991787314,610.26712275,0.00019178,2]
[365937161,1749991787939,460.0,0.00019178,2]
[365937162,1749991789140,5000.0,0.00019106,2]
[365937163,1749991790388,250.0,0.00019178,2]
[365937164,1749991797015,460.0,0.00019178,2]
[365937165,1749991797075,58.60382396,0.00019178,2]
[365937166,1749991798976,178.0,0.00017014,3]
[365937167,1749991806032,467.0893363,0.00018986,2]
[365937197,1749991831937,-361.39617604,0.00019178,2]
[365937198,1749991831947,-460.0,0.00019178,2]
[365937199,1749991831956,-460.0,0.00019178,2]
[365937200,1749991831965,-1098.61769384,0.00019178,2]
[365937201,1749991832152,-103.79230616,0.00019178,2]
[365937202,1749991832161,-460.0,0.00019178,2]
[365937203,1749991832171,-460.0,0.00019178,2]
[365937204,1749991832190,-460.0,0.00019178,2]
[365937205,1749991832200,-712.46,0.00019178,2]
[365937206,1749991832210,-460.0,0.00019178,2]
[365937207,1749991832219,-460.0,0.00019178,2]
[365937208,1749991832230,-460.0,0.00019178,2]
[365937209,1749991832239,-440.0,0.00019178,2]
[365937210,1749991832248,-695.89,0.00019178,2]
[365937211,1749991832257,-500.0,0.00019178,2]
[365937212,1749991832267,-431.20694717,0.00019178,2]
[365937213,1749991832276,-460.0,0.00019178,2]
[365937214,1749991832286,-474.23869175,0.00019178,2]
[365937215,1749991832296,-460.0,0.00019178,2]
[365937216,1749991832305,-537.74457464,0.00019178,2]
[365937217,1749991832317,-430.0,0.00019178,2]
[365937218,1749991832327,-460.0,0.00019178,2]
[365937219,1749991832336,-460.0,0.00019178,2]
[365937220,1749991832345,-180.06482334,0.00019299,2]
[365937221,1749991832355,-443.22,0.00019341,3]
[365937222,1749991832364,-221.61,0.00019341,3]
[365937223,1749991832373,-664.87,0.00019341,3]
[365937224,1749991832383,-283.0,0.00019351,2]
[365937225,1749991832392,-300.0,0.00019351,2]
[365937226,1749991832403,-31.84965863,0.00019352,2]
[365937227,1749991832420,-5024.69988405,0.00019352,2]
[365937228,1749991832430,-500.0,0.00019448,2]
[365937229,1749991832439,-460.0,0.00019449,2]
[365937230,1749991832451,-460.0,0.00019449,2]
[365937231,1749991832460,-460.0,0.00019449,2]
[365937232,1749991832471,-440.0,0.00019449,2]
[365937233,1749991832481,-527.86,0.00019449,2]
[365937234,1749991832491,-460.0,0.00019449,2]
[365937235,1749991832500,-460.0,0.00019449,2]
[365937236,1749991832510,-460.0,0.00019449,2]
[365937237,1749991832520,-460.0,0.00019449,2]
[365937238,1749991832530,-460.0,0.00019449,2]
[365937239,1749991832540,-460.0,0.00019449,2]
[365937240,1749991832549,-565.63,0.00019449,2]
[365937241,1749991832559,-460.0,0.00019449,2]
[365937242,1749991832569,-430.0,0.00019449,2]
[365937243,1749991832578,-1088.49,0.00019449,2]
[365937244,1749991832588,-500.0,0.0001945,2]
[365937245,1749991832598,-637.4035894,0.0001945,2]
[365937246,1749991832608,-1274.72,0.0001945,2]
[365937247,1749991832618,-460.0,0.0001945,2]
[365937248,1749991832627,-460.0,0.0001945,2]
[365937249,1749991832637,-460.0,0.0001945,2]
[365937250,1749991832647,-445.73993836,0.00019451,2]
[365937251,1749991832656,-460.0,0.00019451,2]
[365937252,1749991832666,-511.53692998,0.00019451,2]
[365937253,1749991832676,-331.15799919,0.00019451,2]
[365937254,1749991832686,-460.0,0.00019451,2]
[365937255,1749991832696,-380.0,0.00019451,2]
[365937256,1749991832706,-460.0,0.00019451,2]
[365937257,1749991832715,-460.0,0.00019451,2]
[365937258,1749991832725,-460.0,0.00019451,2]
[365937259,1749991832734,-460.0,0.00019451,2]
[365937260,1749991832744,-460.0,0.00019451,2]
[365937261,1749991832753,-460.0,0.00019451,2]
[365937262,1749991832763,-503.16432968,0.00019451,2]
[365937263,1749991832772,-463.13740274,0.00019451,2]
[365937264,1749991832783,-461.34633325,0.00019451,2]
[365937265,1749991832793,-486.7718507,0.00019451,2]
[365937266,1749991832802,-430.0,0.00019451,2]
[365937267,1749991832815,-460.0,0.00019451,2]
[365937268,1749991832825,-460.0,0.00019451,2]
[365937269,1749991832835,-460.0,0.00019451,2]
[365937270,1749991832845,-440.0,0.00019451,2]
[365937271,1749991832854,-502.93879887,0.00019451,2]
[365937272,1749991832864,-503.80743828,0.00019451,2]
[365937273,1749991832874,-400.0,0.00019451,2]
[365937274,1749991832884,-460.0,0.00019451,2]
[365937275,1749991832893,-460.0,0.00019451,2]
[365937276,1749991832903,-460.0,0.00019451,2]
[365937277,1749991832914,-505.10468092,0.00019451,2]
[365937278,1749991832924,-431.09191532,0.00019451,2]
[365937279,1749991832934,-460.0,0.00019451,2]
[365937280,1749991832944,-460.0,0.00019451,2]
[365937281,1749991832953,-460.0,0.00019451,2]
[365937282,1749991832963,-460.0,0.00019451,2]
[365937283,1749991832972,-460.0,0.00019451,2]
[365937284,1749991832982,-464.54761569,0.00019451,2]
[365937285,1749991832992,-460.0,0.00019451,2]
[365937286,1749991833002,-460.0,0.00019451,2]
[365937287,1749991833011,-460.0,0.00019451,2]
[365937288,1749991833020,-460.0,0.00019451,2]
[365937289,1749991833030,-460.0,0.00019451,2]
[365937290,1749991833041,-460.0,0.00019451,2]
[365937291,1749991833051,-463.42122309,0.00019451,2]
[365937292,1749991833060,-460.0,0.00019451,2]
[365937293,1749991833070,-460.0,0.00019451,2]
[365937294,1749991833080,-596.83309595,0.00019451,2]
[365937295,1749991833090,-404.07801119,0.00019451,2]
[365937296,1749991833100,-461.71251093,0.00019451,2]
[365937297,1749991833110,-440.0,0.00019451,2]
[365937298,1749991833119,-373.61705564,0.00019451,2]
[365937299,1749991833128,-430.0,0.00019451,2]
[365937300,1749991833138,-460.0,0.00019451,2]
[365937301,1749991833148,-467.92654898,0.00019451,2]
[365937302,1749991833157,-460.0,0.00019451,2]
[365937303,1749991833167,-487.7155333,0.00019451,2]
[365937304,1749991833346,-460.0,0.00019451,2]
[365937305,1749991833356,-463.20001686,0.00019451,2]
[365937306,1749991833366,-460.0,0.00019451,2]
[365937307,1749991833376,-460.0,0.00019451,2]
[365937308,1749991833386,-507.35531678,0.00019451,2]
[365937309,1749991833397,-460.0,0.00019451,2]
[365937310,1749991833410,-461.87243434,0.00019451,2]
[365937311,1749991833421,-460.0,0.00019451,2]
[365937312,1749991833431,-547.86262822,0.00019451,2]
[365937313,1749991833441,-369.81196213,0.00019451,2]
[365937314,1749991833454,-436.61590364,0.00019451,2]
[365937315,1749991833465,-460.0,0.00019451,2]
[365937316,1749991833476,-193.37338894,0.00019451,2]
[365937317,1749991833487,-460.0,0.00019451,2]
[365937318,1749991833496,-441.54045547,0.00019451,2]
[365937319,1749991833505,-435.44725883,0.00019451,2]
[365937320,1749991833514,-460.0,0.00019451,2]
[365937321,1749991833524,-460.0,0.00019451,2]
[365937322,1749991833534,-460.0,0.00019451,2]
[365937323,1749991833544,-460.0,0.00019451,2]
[365937324,1749991833555,-460.0,0.00019451,2]
[365937325,1749991833565,-158.6316364,0.00019451,2]
[365937326,1749991833575,-190.58428115,0.00019451,2]
[365937327,1749991833584,-440.0,0.00019451,2]
[365937328,1749991833594,-440.0,0.00019451,2]
[365937329,1749991833604,-460.0,0.00019451,2]
[365937330,1749991833613,-460.0,0.00019451,2]
[365937331,1749991833623,-460.0,0.00019451,2]
[365937332,1749991833633,-460.0,0.00019451,2]
[365937333,1749991833643,-460.0,0.00019451,2]
[365937334,1749991833654,-460.0,0.00019451,2]
[365937335,1749991833664,-460.0,0.00019451,2]
[365937336,1749991833674,-460.0,0.00019451,2]
[365937337,1749991833684,-460.0,0.00019451,2]
[365937338,1749991833694,-460.0,0.00019451,2]
[365937339,1749991833704,-460.0,0.00019451,2]
[365937340,1749991833714,-460.0,0.00019451,2]
[365937341,1749991833723,-460.0,0.00019451,2]
[365937342,1749991833733,-460.0,0.00019451,2]
[365937343,1749991833743,-460.0,0.00019451,2]
[365937344,1749991833753,-460.0,0.00019451,2]
[365937345,1749991833763,-500.0,0.00019451,2]
[365937346,1749991833774,-460.0,0.00019451,2]
[365937347,1749991833784,-460.0,0.00019451,2]
[365937348,1749991833794,-607.93628771,0.00019451,2]
[365937349,1749991833804,-430.0,0.00019451,2]
[365937350,1749991833814,-460.0,0.00019451,2]
[365937351,1749991833823,-460.0,0.00019451,2]
[365937352,1749991833833,-460.0,0.00019451,2]
[365937353,1749991833842,-562.19419776,0.00019451,2]
[365937354,1749991833851,-595.72921266,0.00019451,2]
[365937355,1749991833861,-170.96226806,0.00019451,2]
[365937356,1749991833870,-460.0,0.00019451,2]
[365937357,1749991833879,-430.0,0.00019451,2]
[365937358,1749991833889,-460.0,0.00019451,2]
[365937359,1749991833898,-460.0,0.00019451,2]
[365937360,1749991833908,-460.0,0.00019451,2]
[365937361,1749991833917,-460.0,0.00019451,2]
[365937362,1749991833927,-460.0,0.00019451,2]
[365937363,1749991833936,-460.0,0.00019451,2]
[365937364,1749991833946,-460.0,0.00019451,2]
[365937365,1749991833955,-460.0,0.00019451,2]
[365937366,1749991833965,-460.0,0.00019451,2]
[365937367,1749991833975,-460.0,0.00019451,2]
[365937368,1749991833984,-430.0,0.00019451,2]
[365937369,1749991833993,-460.0,0.00019451,2]
[365937370,1749991834002,-460.0,0.00019451,2]
[365937371,1749991834013,-430.0,0.00019451,2]
[365937372,1749991834022,-460.0,0.00019451,2]
[365937373,1749991834032,-460.0,0.00019451,2]
[365937374,1749991834041,-430.50802997,0.00019451,2]
[365937375,1749991834051,-460.0,0.00019451,2]
[365937376,1749991834061,-460.0,0.00019451,2]
[365937377,1749991834071,-553.23878754,0.00019451,2]
[365937378,1749991834081,-430.0,0.00019451,2]
[365937379,1749991834091,-460.0,0.00019451,2]
[365937380,1749991834100,-460.0,0.00019451,2]
[365937381,1749991834110,-180.24566591,0.00019451,2]
[365937382,1749991834130,-460.0,0.00019451,2]
[365937383,1749991834140,-430.0,0.00019451,2]
[365937384,1749991834151,-241.0512,0.00019451,2]
[365937385,1749991834161,-460.0,0.00019451,2]
[365937386,1749991834171,-460.0,0.00019451,2]
[365937387,1749991834181,-460.0,0.00019451,2]
[365937388,1749991834191,-460.0,0.00019451,2]
[365937389,1749991834202,-430.0,0.00019451,2]
[365937390,1749991834212,-460.0,0.00019451,2]
[365937391,1749991834222,-431.45829805,0.00019451,2]
[365937392,1749991834233,-430.0,0.00019451,2]
[365937393,1749991834243,-460.0,0.00019451,2]
[365937394,1749991834253,-430.0,0.00019451,2]
[365937395,1749991834264,-460.0,0.00019451,2]
[365937396,1749991834274,-460.0,0.00019451,2]
[365937397,1749991834284,-432.51120455,0.00019451,2]
[365937398,1749991834293,-430.0,0.00019451,2]
[365937399,1749991834303,-460.0,0.00019451,2]
[365937400,1749991834312,-409.56809522,0.00019451,2]
[365937401,1749991834323,-430.0,0.00019451,2]
[365937402,1749991834333,-460.0,0.00019451,2]
[365937403,1749991834343,-432.20839296,0.00019451,2]
[365937404,1749991834352,-440.0,0.00019451,2]
[365937405,1749991834362,-460.0,0.00019451,2]
[365937406,1749991834371,-460.0,0.00019451,2]
[365937407,1749991834380,-444.20480585,0.00019451,2]
[365937408,1749991834390,-460.0,0.00019451,2]
[365937409,1749991834404,-460.0,0.00019451,2]
[365937410,1749991834414,-460.0,0.00019451,2]
[365937411,1749991834424,-430.0,0.00019451,2]
[365937412,1749991834434,-432.32519125,0.00019451,2]
[365937413,1749991834443,-430.0,0.00019451,2]
[365937414,1749991834452,-460.0,0.00019451,2]
[365937415,1749991834462,-389.63629964,0.00019452,2]
[365937416,1749991834473,-529.88290532,0.00019452,2]
[365937417,1749991834484,-429.0078615,0.00019452,2]
[365937418,1749991834494,-460.0,0.00019452,2]
[365937419,1749991834503,-386.5699218,0.00019452,2]
[365937420,1749991834513,-423.41473104,0.00019452,2]
[365937421,1749991834523,-460.0,0.00019452,2]
[365937422,1749991834534,-460.0,0.00019452,2]
[365937423,1749991834545,-280.0,0.00019452,2]
[365937424,1749991834555,-377.21477393,0.00019452,2]
[365937425,1749991834566,-460.0,0.00019452,2]
[365937426,1749991834577,-440.0,0.00019452,2]
[365937427,1749991834588,-460.0,0.00019452,2]
[365937428,1749991834597,-460.0,0.00019452,2]
[365937429,1749991834607,-460.0,0.00019452,2]
[365937430,1749991834617,-460.0,0.00019452,2]
[365937431,1749991834627,-430.0,0.00019452,2]
[365937432,1749991834638,-486.57744035,0.00019452,2]
[365937433,1749991834647,-460.0,0.00019452,2]
[365937434,1749991834658,-463.30851933,0.00019452,2]
[365937435,1749991834667,-460.0,0.00019452,2]
[365937436,1749991834677,-460.0,0.00019452,2]
[365937437,1749991834687,-460.0,0.00019452,2]
[365937438,1749991834697,-460.0,0.00019452,2]
[365937439,1749991834707,-460.0,0.00019452,2]
[365937440,1749991834716,-460.0,0.00019452,2]
[365937441,1749991834726,-460.0,0.00019452,2]
[365937442,1749991834736,-460.0,0.00019452,2]
[365937443,1749991834746,-460.0,0.00019452,2]
[365937444,1749991834756,-460.0,0.00019452,2]
[365937445,1749991834766,-460.0,0.00019452,2]
[365937446,1749991834776,-460.0,0.00019452,2]
[365937447,1749991834787,-460.0,0.00019452,2]
[365937448,1749991834796,-460.0,0.00019452,2]
[365937449,1749991834806,-460.0,0.00019452,2]
[365937450,1749991834816,-460.0,0.00019452,2]
[365937451,1749991834826,-400.0,0.00019452,2]
[365937452,1749991834836,-187.02358768,0.00019452,2]
[365937453,1749991834845,-460.0,0.00019452,2]
[365937454,1749991834856,-460.0,0.00019452,2]
[365937455,1749991834866,-398.93975726,0.00019452,2]
[365937456,1749991834876,-1051.34,0.00019452,2]
[365937457,1749991834886,-460.0,0.00019452,2]
[365937458,1749991834896,-460.0,0.00019452,2]
[365937459,1749991834906,-460.0,0.00019452,2]
[365937460,1749991834916,-460.0,0.00019452,2]
[365937461,1749991834926,-483.76,0.00019452,2]
[365937462,1749991834935,-460.0,0.00019452,2]
[365937463,1749991834945,-1024.56,0.00019452,2]
[365937464,1749991834955,-460.0,0.00019452,2]
[365937465,1749991834965,-250.26799731,0.00019452,2]
[365937466,1749991834975,-460.0,0.00019452,2]
[365937467,1749991834985,-460.0,0.00019452,2]
[365937468,1749991834995,-460.0,0.00019452,2]
[365937469,1749991835009,-460.0,0.00019452,2]
[365937470,1749991835018,-856.09,0.00019452,2]
[365937471,1749991835028,-460.0,0.00019452,2]
[365937472,1749991835039,-494.88272205,0.00019452,2]
[365937473,1749991835048,-460.0,0.00019452,2]
[365937474,1749991835058,-467.57672214,0.00019452,2]
[365937475,1749991835068,-460.0,0.00019452,2]
[365937476,1749991835078,-460.0,0.00019452,2]
[365937477,1749991835088,-460.0,0.00019452,2]
[365937478,1749991835098,-400.0,0.00019452,2]
[365937479,1749991835108,-460.0,0.00019452,2]
[365937480,1749991835117,-440.0,0.00019452,2]
[365937481,1749991835127,-460.0,0.00019452,2]
[365937482,1749991835136,-460.0,0.00019452,2]
[365937483,1749991835145,-460.0,0.00019452,2]
[365937484,1749991835155,-370.0,0.00019452,2]
[365937485,1749991835164,-460.0,0.00019452,2]
[365937486,1749991835174,-460.0,0.00019452,2]
[365937487,1749991835183,-460.0,0.00019452,2]
[365937488,1749991835193,-460.0,0.00019452,2]
[365937489,1749991835203,-440.0,0.00019452,2]
[365937490,1749991835212,-460.0,0.00019452,2]
[365937491,1749991835222,-460.0,0.00019452,2]
[365937492,1749991835231,-460.0,0.00019452,2]
[365937493,1749991835241,-460.0,0.00019452,2]
[365937494,1749991835251,-460.0,0.00019452,2]
[365937495,1749991835261,-480.0693488,0.00019452,2]
[365937496,1749991835271,-460.0,0.00019452,2]
[365937497,1749991835281,-430.0,0.00019452,2]
[365937498,1749991835293,-461.64073635,0.00019452,2]
[365937499,1749991835302,-460.0,0.00019452,2]
[365937500,1749991835312,-460.0,0.00019452,2]
[365937501,1749991835322,-460.0,0.00019452,2]
[365937502,1749991835343,-460.0,0.00019452,2]
[365937503,1749991835353,-460.0,0.00019452,2]
[365937504,1749991835362,-460.0,0.00019452,2]
[365937505,1749991835373,-460.0,0.00019452,2]
[365937506,1749991835388,-460.0,0.00019452,2]
[365937507,1749991835402,-460.0,0.00019452,2]
[365937508,1749991835424,-460.0,0.00019452,2]
[365937509,1749991835437,-460.0,0.00019452,2]
[365937510,1749991835447,-460.0,0.00019452,2]
[365937511,1749991835458,-460.0,0.00019452,2]
[365937512,1749991835468,-460.0,0.00019452,2]
[365937513,1749991835478,-460.0,0.00019452,2]
[365937514,1749991835487,-460.0,0.00019452,2]
[365937515,1749991835498,-460.0,0.00019452,2]
[365937516,1749991835508,-460.0,0.00019452,2]
[365937517,1749991835518,-413.71294305,0.00019452,2]
[365937518,1749991835528,-460.0,0.00019452,2]
[365937519,1749991835540,-509.1,0.00019452,2]
[365937520,1749991835549,-460.0,0.00019452,2]
[365937521,1749991835559,-460.0,0.00019452,2]
[365937522,1749991835569,-460.0,0.00019452,2]
[365937523,1749991835579,-460.0,0.00019452,2]
[365937524,1749991835589,-460.0,0.00019452,2]
[365937525,1749991835600,-460.0,0.00019452,2]
[365937526,1749991835610,-468.55167062,0.00019452,2]
[365937527,1749991835620,-500.0,0.00019452,2]
[365937528,1749991835629,-460.0,0.00019452,2]
[365937529,1749991835639,-456.0948715,0.00019452,2]
[365937530,1749991835649,-460.0,0.00019452,2]
[365937531,1749991835659,-1121.96,0.00019452,2]
[365937532,1749991835669,-460.0,0.00019452,2]
[365937533,1749991835679,-460.0,0.00019452,2]
[365937534,1749991835688,-460.0,0.00019452,2]
[365937535,1749991835698,-1202.41,0.00019452,2]
[365937536,1749991835708,-460.0,0.00019452,2]
[365937537,1749991835718,-301.23764134,0.00019452,2]
[365937538,1749991835727,-460.0,0.00019452,2]
[365937539,1749991835737,-712.46,0.00019452,2]
[365937540,1749991835748,-460.0,0.00019452,2]
[365937541,1749991835758,-460.0,0.00019452,2]
[365937542,1749991835768,-695.89,0.00019452,2]
[365937543,1749991835778,-460.0,0.00019452,2]
[365937544,1749991835789,-460.0,0.00019452,2]
[365937545,1749991835798,-440.0,0.00019452,2]
[365937546,1749991835808,-255.4406849,0.00019452,2]
[365937547,1749991835817,-297.33700682,0.00019473,2]
[365937548,1749991835827,-500.0,0.00019473,2]
[365937549,1749991835837,-500.0,0.00019473,2]
[365937550,1749991835847,-500.0,0.00019473,2]
[365937551,1749991835856,-501.95007019,0.00019473,2]
[365937552,1749991835866,-500.0,0.00019473,2]
[365937553,1749991835876,-500.0,0.00019473,2]
[365937554,1749991835886,-500.0,0.00019473,2]
[365937555,1749991835896,-500.0,0.00019473,2]
[365937556,1749991835905,-500.86300263,0.00019473,2]
[365937557,1749991835915,-500.0,0.00019473,2]
[365937558,1749991835926,-500.0,0.00019473,2]
[365937559,1749991835935,-502.547628,0.00019473,2]
[365937560,1749991835945,-500.0,0.00019473,2]
[365937561,1749991835955,-500.0,0.00019473,2]
[365937562,1749991835964,-500.0,0.00019473,2]
[365937563,1749991835974,-500.0,0.00019473,2]
[365937564,1749991835983,-502.94341378,0.00019473,2]
[365937565,1749991835993,-513.99120026,0.00019473,2]
[365937566,1749991836003,-504.25651522,0.00019473,2]
[365937567,1749991836014,-500.0,0.00019473,2]
[365937568,1749991836024,-257.69234086,0.00019473,2]
[365937569,1749991836034,-500.84234029,0.00019473,2]
[365937570,1749991836044,-500.0,0.00019473,2]
[365937571,1749991836054,-500.0,0.00019473,2]
[365937572,1749991836064,-501.20390205,0.00019473,2]
[365937573,1749991836074,-500.0,0.00019473,2]
[365937574,1749991836084,-500.0,0.00019473,2]
[365937575,1749991836094,-500.0,0.00019473,2]
[365937576,1749991836104,-500.0,0.00019473,2]
[365937577,1749991836114,-500.0,0.00019473,2]
[365937578,1749991836123,-500.0,0.00019473,2]
[365937579,1749991836133,-267.74499687,0.00019473,2]
[365937580,1749991836143,-500.0,0.00019473,2]
[365937581,1749991836153,-500.0,0.00019473,2]
[365937582,1749991836163,-389.79435841,0.00019473,2]
[365937583,1749991836172,-500.0,0.00019473,2]
[365937584,1749991836182,-500.0,0.00019473,2]
[365937585,1749991836192,-165.90302041,0.00019473,2]
[365937586,1749991836202,-500.0,0.00019473,2]
[365937587,1749991836211,-501.58342673,0.00019473,2]
[365937588,1749991836221,-500.0,0.00019473,2]
[365937589,1749991836231,-500.0,0.00019473,2]
[365937590,1749991836241,-500.0,0.00019473,2]
[365937591,1749991836251,-500.0,0.00019473,2]
[365937592,1749991836261,-500.0,0.00019473,2]
[365937593,1749991836271,-500.0,0.00019473,2]
[365937594,1749991836282,-507.04944435,0.00019473,2]
[365937595,1749991836292,-500.0,0.00019473,2]
[365937596,1749991836302,-500.0,0.00019585,2]
[365937597,1749991836313,-500.0,0.00019614,2]
[365937598,1749991836322,-500.0,0.00019614,2]
[365937599,1749991836332,-500.0,0.00019614,2]
[365937600,1749991836342,-260.35903934,0.00019614,2]
[365937601,1749991836352,-500.0,0.00019614,2]
[365937602,1749991836363,-500.0,0.0001962,2]
[365937603,1749991836372,-500.0,0.0001972,2]
[365937604,1749991836382,-400.0,0.00019723,2]
[365937605,1749991836392,-460.0,0.00019723,2]
[365937606,1749991836406,-460.0,0.00019723,2]
[365937607,1749991836425,-527.86,0.00019723,2]
[365937608,1749991836435,-460.0,0.00019723,2]
[365937609,1749991836446,-460.0,0.00019723,2]
[365937610,1749991836456,-460.0,0.00019723,2]
[365937611,1749991836467,-155.06262506,0.00019723,2]
[365937612,1749991836477,-460.0,0.00019723,2]
[365937613,1749991836487,-565.63,0.00019723,2]
[365937614,1749991836498,-460.0,0.00019723,2]
[365937615,1749991836509,-1088.49,0.00019723,2]
[365937616,1749991836519,-500.0,0.00019724,2]
[365937617,1749991836529,-1274.72,0.00019724,2]
[365937618,1749991836540,-460.0,0.00019724,2]